Cogmind - Beta 16 @@@ ROGUE MODE // 2025.11.15 @ 23:17:22 Player: ChromeKnight Result: Self-destructed Performance ------------- Evolutions (9) 4500 Regions Visited (28) 5600 Robots Destroyed (202) 1010 Value Destroyed (8886) 8886 Prototype IDs (28) 560 Alien Tech Used (5) 1000 Bonus (7933) 7933 TOTAL SCORE: 29489 Bonus ------- High Alert Combat Kills 479 Follower Combat Kills 2180 Entered DSFs 500 Network Hubs Disabled 200 Met Warlord at Base 500 MAIN.C Attacked Warlord 500 Warlord Defense Kills 220 Built Enhanced Grunts 300 Met R17 at Cetus 500 Met R17 at Research 2000 Met Warlord at Research 2000 Invited to Help at Command 2000 Friendly Fire -3446 Cogmind --------- Core Integrity 1408/1600 Matter 285/300 Energy 185/185 System Corruption 5% Temperature Cool (0) Movement Hovering (58) Location -1/Access Parts ------- > --- POWER (3) -------- Quantum-Particle Reactor > --- PROPULSION (7) --- Hovering Centrium-Biometal Exoskeleton > --- UTILITY (11) ----- Armored Scrap Engine High-capacity Storage Unit Experimental Targeting Computer Experimental Armor Integrity Analyzer Improved Transmission Jammer Advanced Powered Armor Graphene Brace > --- WEAPON (4) ------- (None) > --- INVENTORY (20) --- Improved Weapon Cycler Improved Transmission Jammer Advanced Powered Armor Advanced Remote Force Field Dimensional Node Initializer Transdimensional Reconstructor Transdimensional Reconstructor Subatomic Replicator HERF Cannon Nova Cannon Nova Cannon Nova Cannon Nova Cannon Enhanced Gamma Bomb Array Enhanced Force Lance Enhanced Force Lance Peak State ------------ > --- POWER ------------ Quantum-Particle Reactor > --- PROPULSION ------- Hovering Centrium-Biometal Exoskeleton > --- UTILITY ---------- Armored Scrap Engine Advanced Cooling System Large Storage Unit Advanced Signal Interpreter Experimental Targeting Computer Experimental Core Analyzer Experimental Armor Integrity Analyzer Advanced Powered Armor Graphene Brace Advanced Remote Force Field > --- WEAPON ----------- Enhanced Gamma Bomb Array Hpw. Kinetic Hardcell Construct/C > --- INVENTORY -------- Experimental Coolant Injector Improved Weapon Cycler Improved Transmission Jammer Improved Transmission Jammer Advanced Powered Armor Advanced Powered Armor Advanced Powered Armor Advanced Remote Force Field Dimensional Node Initializer Transdimensional Reconstructor Transdimensional Reconstructor Transdimensional Reconstructor High-powered Transdimensional Reconstructor Subatomic Replicator [Rating: 200] Favorites ----------- Power Constructs Engine Cooled Ion Engine Power Core Light Nuclear Core Reactor Constructs Propulsion Constructs Treads Light Treads Leg Aluminum Leg Wheel Compact Wheel Hover Unit Constructs Utility Armored Scrap Engine Device Armored Scrap Engine Storage High-capacity Storage Unit Processor Experimental Targeting Computer Protection Advanced Powered Armor Artifact Phase Armor Weapon Constructs Energy Gun Advanced Beam Rifle Energy Cannon Enhanced Nova Cannon Ballistic Gun Enhanced Autogun Ballistic Cannon Constructs Launcher Advanced EMP Blaster Impact Weapon Gravity Flail Slashing Weapon Ripper Build | -11 -10 -10 -10 -8 -8 -8 -6 -6 -6 -6 -6 -5 -5 -5 -5 -5 -5 -4 -4 -4 -4 -4 -3 -3 -2 -2 -2 -1 ------- Run | Yrd Mat Min Sub Mat Sto Rec Fac Ext Cet Arc Hub Fac Was Fac Upp Upp War Pro Fac Was Fac DSF Res Qua Res Tes Frg Acc Slots Evolved 18 | . . . . 4 . . 4 . . . . 2 . . . . . . 2 . . . 2 . 2 . . 2 Power 2 | . . . . . . . 1 . . . . . . . . . . . . . . . . . . . . 1 Propulsion 5 | . . . . 3 . . 2 . . . . . . . . . . . . . . . . . . . . . Utility 9 | . . . . 1 . . 1 . . . . 2 . . . . . . 1 . . . 2 . 2 . . . Weapon 2 | . . . . . . . . . . . . . . . . . . . 1 . . . . . . . . 1 Parts Attached 117 | 6 2 . 2 13 19 3 1 4 4 1 3 2 . 7 . . 1 4 1 . 2 5 6 11 9 9 . 2 Power 4 | 1 . . . 2 1 . . . . . . . . . . . . . . . . . . . . . . . Engine 3 | 1 . . . 1 1 . . . . . . . . . . . . . . . . . . . . . . . Core 1 | . . . . 1 . . . . . . . . . . . . . . . . . . . . . . . . Reactor . | . . . . . . . . . . . . . . . . . . . . . . . . . . . . . Propulsion 17 | 2 . . . 4 8 1 . . . . 1 . . . . . . . . . . . . 1 . . . . Treads 8 | 2 . . . . 5 1 . . . . . . . . . . . . . . . . . . . . . . Leg 6 | . . . . 2 2 . . . . . 1 . . . . . . . . . . . . 1 . . . . Wheel 2 | . . . . 2 . . . . . . . . . . . . . . . . . . . . . . . . Hover 1 | . . . . . 1 . . . . . . . . . . . . . . . . . . . . . . . Flight . | . . . . . . . . . . . . . . . . . . . . . . . . . . . . . Utility 66 | 1 2 . . 4 2 1 1 3 4 . 2 2 . 7 . . 1 3 1 . 2 4 5 7 6 7 . 1 Device 30 | . 1 . . 2 1 1 . 3 1 . . 2 . 4 . . . 2 1 . 1 1 3 1 2 4 . . Storage 8 | 1 1 . . . . . . . 1 . . . . 2 . . . . . . 1 . . . . 2 . . Processor 10 | . . . . . . . . . . . . . . 1 . . 1 1 . . . 1 . 2 3 1 . . Hackware . | . . . . . . . . . . . . . . . . . . . . . . . . . . . . . Protection 16 | . . . . 2 1 . 1 . 2 . 2 . . . . . . . . . . 2 2 2 1 . . 1 Artifact 2 | . . . . . . . . . . . . . . . . . . . . . . . . 2 . . . . Weapon 30 | 2 . . 2 3 8 1 . 1 . 1 . . . . . . . 1 . . . 1 1 3 3 2 . 1 Energy Gun 8 | 1 . . 1 1 3 . . . . . . . . . . . . . . . . . . 1 . 1 . . Energy Cannon 4 | . . . . . . . . . . . . . . . . . . . . . . 1 1 1 . . . 1 Ballistic Gun 7 | 1 . . . 1 3 . . 1 . . . . . . . . . . . . . . . . 1 . . . Ballistic Cannon 3 | . . . . 1 . 1 . . . . . . . . . . . 1 . . . . . . . . . . Launcher 6 | . . . 1 . 2 . . . . . . . . . . . . . . . . . . 1 1 1 . . Special Weapon . | . . . . . . . . . . . . . . . . . . . . . . . . . . . . . Impact Weapon 1 | . . . . . . . . . . . . . . . . . . . . . . . . . 1 . . . Slashing Weapon 1 | . . . . . . . . . . 1 . . . . . . . . . . . . . . . . . . Piercing Weapon . | . . . . . . . . . . . . . . . . . . . . . . . . . . . . . Special Melee Weapon . | . . . . . . . . . . . . . . . . . . . . . . . . . . . . . Unidentified Prototypes 26 | . . . . . 7 1 . . 2 . 1 . . . . . 1 2 . . . . 1 6 4 1 . . Parts Lost 39 | . . . 4 8 3 . . 6 . . 1 . . . . . 2 1 . 1 . 1 . . . 2 8 2 Power 6 | . . . 1 1 . . . 1 . . . . . . . . 1 . . . . . . . . . . 2 Propulsion 6 | . . . 2 1 2 . . 1 . . . . . . . . . . . . . . . . . . . . Utility 15 | . . . . 1 1 . . 2 . . 1 . . . . . . . . 1 . 1 . . . 2 6 . Weapon 12 | . . . 1 5 . . . 2 . . . . . . . . 1 1 . . . . . . . . 2 . Highest Loss Streak 5 | . . . 3 4 1 . . 5 . . 1 . . . . . 2 1 . 1 . 1 . . . 1 4 1 To Critical Strikes . | . . . . . . . . . . . . . . . . . . . . . . . . . . . . . Average Backups 12 | 1 2 5 6 10 19 12 17 15 16 18 18 2 4 4 9 8 8 8 8 6 5 11 13 13 15 14 13 11 Power . | . 1 1 1 1 2 1 . . . . . . . . . . . . . . . . . . . . . . Propulsion . | . . . . . . . . . . . . . . . . . . . . . . . . . . . . . Utility 8 | . . 2 2 5 9 6 11 12 14 17 16 2 4 4 9 8 8 8 8 6 5 9 9 10 7 7 6 4 Weapon 2 | . 1 2 3 3 5 4 4 2 2 1 2 . . . . . . . . . . 1 3 1 . . 1 2 Tool/Special . | . . . . . . . . . . . . . . . . . . . . . . . . . . . . . Unused Backups 81 | . . . . . 12 9 4 3 4 5 15 . . . . . . . . 4 . 4 4 3 . 1 . 13 Power 2 | . . . . . . 1 1 . . . . . . . . . . . . . . . . . . . . . Propulsion . | . . . . . . . . . . . . . . . . . . . . . . . . . . . . . Utility 38 | . . . . . 5 1 . 1 2 5 12 . . . . . . . . 4 . 4 . 2 . . . 2 Weapon 36 | . . . . . 7 7 3 2 2 . 3 . . . . . . . . . . . 4 1 . . . 7 Tool/Special 5 | . . . . . . . . . . . . . . . . . . . . . . . . . . 1 . 4 Average Slot Usage (%) 53 | . 97 100 73 63 89 58 39 38 39 40 40 46 38 46 47 47 46 44 42 37 33 46 49 52 55 56 52 37 Engine 3 | . 14 14 2 . 6 8 5 4 . . . . . . . . . . . . . . . . . . . . Reactor 2 | . . . . . . . . . 4 6 6 5 5 5 5 5 5 5 5 5 5 5 4 4 4 4 4 3 Treads 7 | . 28 28 19 . 30 15 . 1 . . . . 2 5 5 2 . . . . . . . . . . . . Leg 2 | . . . . 11 5 . . 2 3 . 2 5 2 . . 1 4 4 5 4 . . . 4 4 4 4 1 Wheel 1 | . . . . 10 3 2 3 . . . . . . . . . . . . . . . . . . . . . Device 13 | . 12 14 14 7 13 11 6 11 11 6 6 22 16 21 17 17 15 7 10 8 5 10 14 18 20 17 19 12 Storage 6 | . 14 14 14 9 9 9 6 6 6 6 5 . . 1 5 5 5 5 5 2 1 5 4 4 4 4 4 4 Processor 3 | . . . . . . . . . . . . . . 4 5 5 5 10 10 10 10 10 9 9 13 16 11 8 Protection 1 | . . . . 3 4 . 5 . . 6 6 5 2 . . . . 3 . . . 4 5 4 4 4 3 3 Energy Gun 2 | . 14 14 14 4 6 2 2 . 3 2 . . . . . . . . . . . . 1 . . . . . Ballistic Gun 1 | . 14 14 . 6 . 2 . 3 2 3 2 . . . . . . . . . . . . . . . . . Ballistic Cannon 3 | . . . . 6 2 6 3 1 . . . . . . . 5 3 2 5 1 . 5 2 . 3 4 3 . Peak Build Rating 200 | 6 7 7 8 21 34 46 68 74 83 88 98 92 107 106 94 94 104 106 106 103 100 108 150 163 173 200 186 156 Average Rating 75 | 4 6 7 6 13 28 35 53 62 69 83 84 90 91 99 94 89 86 100 98 90 87 102 128 143 164 187 176 145 On Entrance 79 | . 6 7 7 4 13 33 40 68 52 83 83 93 92 83 94 94 83 86 100 101 85 93 102 143 155 169 185 140 Avg Prop Armor Cover (%) 12 | . . . . 11 13 . . . . . . . . . . . . . . . . . . . . . . . Naked Turns . | . . . . . . . . . . . . . . . . . . . . . . . . . . . . . Heaviest Build 108 | 14 50 50 52 61 68 57 57 70 73 76 74 37 37 49 49 49 54 48 43 43 50 65 98 104 93 108 107 105 Greatest Support 305 | 40 40 40 40 32 106 106 72 122 53 46 112 76 161 161 95 95 95 99 99 99 83 83 109 109 109 305 305 305 Greatest Overweight (x) 15 | . 1 1 13 15 4 4 . 1 1 1 1 . . . . . . . . . . . 1 . . . . . Average Overweight (x) . | . . 1 2 2 1 . . . 1 1 . . . . . . . . . . . . . . . . . . Largest Inventory Capacity 20 | 8 20 20 20 20 20 20 20 20 20 20 20 5 5 15 15 15 15 15 15 15 15 15 15 15 15 20 20 20 Average Capacity 17 | 7 9 20 20 20 20 20 20 20 20 20 18 5 5 6 15 15 15 15 15 9 8 15 15 15 15 15 20 20 Most Carried 20 | 2 4 6 10 16 20 20 20 19 20 20 20 4 5 9 9 9 12 11 10 11 6 15 15 15 15 15 14 16 Average Carried 12 | 1 2 5 6 11 19 12 17 16 16 18 18 2 4 4 9 8 9 9 9 7 5 12 14 14 14 14 13 10 Final Capacity 20 | 8 20 20 20 20 20 20 20 20 20 20 5 5 5 15 15 15 15 15 15 5 15 15 15 15 15 20 20 20 Final Carried 20 | 2 4 6 10 16 20 10 18 15 19 20 4 4 5 9 9 8 11 9 9 5 6 15 15 15 15 14 11 16 Scrap Engine Consumption 333 | . . . . . . 54 33 71 21 3 5 9 4 12 4 4 16 6 6 5 . 34 10 3 13 6 . 14 Constructs Created 7 | . . . . . . 3 . 1 . . . . . . . . . 1 . . . 1 . . . . . 1 Constructs Modified 130 | . . . . . . 19 9 32 9 2 3 2 2 3 1 4 5 2 1 5 1 1 17 . 4 6 . 2 Class Distribution -------------------- 55% | Construct 24% | Commander-Construct 9% | Mutant 7% | Commander-Mutant Dominant Class ---------------- Mutant | -10/Materials Mutant | -10/Mines Mutant | -10/Subcaves Scavenger-Mutant | -8/Materials Mutant | -8/Storage Commander-Construct | -8/Recycling Commander-Construct | -6/Factory Construct | -6/Extension Commander-Construct | -6/Cetus Construct | -6/Archives Construct | -6/Hub_04(d) Construct | -5/Factory Construct | -5/Waste Construct | -5/Factory Construct | -5/Upper Caves Construct | -5/Upper Caves Construct | -5/Warlord Construct | -4/Proximity Caves Construct | -4/Factory Construct | -4/Waste Construct | -4/Factory Construct | -4/DSF Construct | -3/Research Construct | -3/Quarantine Construct | -2/Research Construct | -2/Testing Construct | -2/Protoforge Mutant | -1/Access Resources | -11 -10 -10 -10 -8 -8 -8 -6 -6 -6 -6 -6 -5 -5 -5 -5 -5 -5 -4 -4 -4 -4 -4 -3 -3 -2 -2 -2 -1 ----------- Run | Yrd Mat Min Sub Mat Sto Rec Fac Ext Cet Arc Hub Fac Was Fac Upp Upp War Pro Fac Was Fac DSF Res Qua Res Tes Frg Acc Matter Collected 5137 | 240 87 55 177 249 489 758 79 304 147 123 80 162 . 6 124 175 . 84 54 . . 235 260 302 206 466 90 185 Remotely . | . . . . . . . . . . . . . . . . . . . . . . . . . . . . . Salvage Created 10817 | . 223 46 176 478 685 1888 242 1383 75 168 167 289 . 110 . 169 2 48 97 255 . 364 369 751 878 1676 250 28 Parts 519 | . 12 3 11 22 31 90 8 48 5 7 10 13 . 2 . 9 . 7 8 4 . 26 11 50 39 91 11 1 Haulers Intercepted 4 | . . . . 1 1 . . . . . . . . 1 . . . . . . . . . . 1 . . . Recyclers Shooed 12 | . . . . 1 1 6 1 3 . . . . . . . . . . . . . . . . . . . . Parts Field Recycled . | . . . . . . . . . . . . . . . . . . . . . . . . . . . . . Retrieved Matter . | . . . . . . . . . . . . . . . . . . . . . . . . . . . . . Parts Self-Destructed 13 | . . . . . . . . . . . . . . . . 8 . 5 . . . . . . . . . . Prevented 2 | . . . . . . . . . . . . . . . . 2 . . . . . . . . . . . . Parts Restored . | . . . . . . . . . . . . . . . . . . . . . . . . . . . . . Kills | -11 -10 -10 -10 -8 -8 -8 -6 -6 -6 -6 -6 -5 -5 -5 -5 -5 -5 -4 -4 -4 -4 -4 -3 -3 -2 -2 -2 -1 ------- Run | Yrd Mat Min Sub Mat Sto Rec Fac Ext Cet Arc Hub Fac Was Fac Upp Upp War Pro Fac Was Fac DSF Res Qua Res Tes Frg Acc Combat Hostiles Destroyed 143 | . 5 3 4 8 13 3 4 22 . 1 3 5 . . . 3 1 4 4 1 . 7 4 12 9 22 5 . Melee 2 | . . . . . . . . . . . . . . . . . . 2 . . . . . . . . . . Guns 34 | . 5 3 1 1 5 3 3 10 . 1 . . . . . . . . . . . . 2 . . . . . Cannons 85 | . . . . 5 5 . . 5 . . 3 5 . . . 1 1 2 4 1 . 7 2 11 9 22 2 . AOE 18 | . . . 3 2 3 . . 5 . . . . . . . 2 . . . . . . . . . . 3 . Classes Destroyed 23 | . 4 . 1 5 . 2 . 3 . . . . . . . . 1 . . 1 . 2 1 . 2 1 . . Worker 5 | . 1 . . . . 1 . . . . . . . 1 . . . . . . . . . . 1 . . 1 Builder 11 | . . . . . . 8 1 . . . . . . . . . . . . . . . . . . 2 . . Hauler 5 | . . . . 1 1 . . 1 . . . . . 1 . . . . . . . . . . 1 . . . Recycler 19 | . . . . 3 . 15 . 1 . . . . . . . . . . . . . . . . . . . . Mechanic 1 | . . . . . . . . . . . . . . . . . . . . . . . 1 . . . . . Operator 5 | . . . . 1 . . 1 . . . 1 . . . . . . . . . . . . 1 . 1 . . Watcher 10 | . 2 . . . . . . 1 . . . . . 1 . . . . . . . . 1 2 2 . 1 . Swarmer 37 | . 3 3 . 2 . . . . . . . . . . . . . 4 4 . . 3 1 3 . 9 5 . Saboteur 1 | . . . . . . . . . . . . . . . . . . . . . . . . . 1 . . . Grunt 42 | . 2 . . 3 9 . 3 10 . . 1 3 . . . 2 . . . . . . 1 3 1 4 . . Duelist 3 | . . . . . . . . 1 . . . . . . . 1 . . . . . . 1 . . . . . Sentry 21 | . . . . 1 4 2 . 8 . 1 1 . . . . . . . . . . . 1 . 3 . . . Demolisher 1 | . . . . . . . . . . . . . . . . . . . . . . . . . 1 . . . Specialist 3 | . . . . 2 . . . . . . . . . . . . . . . . . 1 . . . . . . Hunter 10 | . . . . . . . . . . . . . . . . . . . . . . 2 . . 2 6 . . Programmer 16 | . . . . . . 1 1 1 . . 1 2 . . . . . . . . . . . 6 1 3 . . Heavy 1 | . . . . . . . . . . . . . . . . . . . . . . 1 . . . . . . Behemoth 1 | . . . . . . . . 1 . . . . . . . . . . . . . . . . . . . . Compactor 1 | . . . . . . . . . . . . . . . . . . . . 1 . . . . . . . . Enhanced Grunt 1 | . . . . . . . . . . 1 . . . . . . . . . . . . . . . . . . Striker 1 | . . . . . . . . . . . . . . . . . 1 . . . . . . . . . . . Subdweller 4 | . . . 4 . . . . . . . . . . . . . . . . . . . . . . . . . Savage 1 | . . . . . . . . 1 . . . . . . . . . . . . . . . . . . . . Knight 1 | . . . . . . . . . . . . . . . . . . . . . . . . . . 1 . . Best Kill Streak 7 | . 7 3 2 5 6 6 4 6 . 1 1 2 . 3 . 3 1 2 4 1 . 3 3 3 3 5 4 1 Combat Bots Only 6 | . 5 3 2 3 6 1 4 6 . 1 1 2 . . . 3 1 2 4 1 . 3 2 3 3 5 4 . Max Kills in Single Turn 3 | . 2 1 1 1 2 1 1 3 1 1 1 1 . 2 . 2 1 1 1 1 . 1 1 1 2 2 3 1 Gunslinging 1 | . 1 . . . . . . . . . . . . . . . . . . . . . . . . . . . Exploded 3 | . . . 1 1 2 . . 3 . . . . . . . 2 . . . . . . . . . . 3 . Melee 1 | . . . . . . . . . . . . . . . . . . 1 . . . . . . . . . . Uniques/NPCs Destroyed 1 | . . . . . . . . . 1 . . . . . . . . . . . . . . . . . . . A7 (-6/Cetus) Combat | -11 -10 -10 -10 -8 -8 -8 -6 -6 -6 -6 -6 -5 -5 -5 -5 -5 -5 -4 -4 -4 -4 -4 -3 -3 -2 -2 -2 -1 -------- Run | Yrd Mat Min Sub Mat Sto Rec Fac Ext Cet Arc Hub Fac Was Fac Upp Upp War Pro Fac Was Fac DSF Res Qua Res Tes Frg Acc Hostile Shots Fired 1621 | . 33 11 20 101 84 6 28 451 3 5 34 17 9 12 . 2 69 98 13 1 . 134 48 28 20 184 148 62 Missed 572 | . 8 2 5 29 19 1 12 166 . 3 3 7 . . . 1 32 45 5 . . 67 11 10 7 65 52 22 Hits 1049 | . 25 9 15 72 65 5 16 285 3 2 31 10 9 12 . 1 37 53 8 1 . 67 37 18 13 119 96 40 Melee 21 | . . . . . . . . 2 . . . . 9 . . . 8 . . 1 . 1 . . . . . . Projectile 1028 | . 25 9 15 72 65 5 16 283 3 2 31 10 . 12 . 1 29 53 8 . . 66 37 18 13 119 96 40 AOE 1 | . . . . . . . . . . . . . . . . . 1 . . . . . . . . . . . Critical Strikes 44 | . . . . 2 4 . . 4 1 . 7 . 6 . . . 3 . . 1 . 2 2 1 1 2 7 1 Actively Blocked 11 | . . . . . . . . . . . . . . . . . . . . . . . 2 . . 1 7 1 Damage Taken 18913 | . 273 73 424 1133 967 82 276 2795 136 48 1346 194 420 344 . 58 1118 764 88 48 . 1041 798 398 305 2240 2599 945 Core 2010 | . 50 8 159 348 72 . 6 368 . . 42 . 51 . . . 222 112 24 . . 78 87 . . 159 142 82 Absorbed by Shields 1051 | . . . . . . . . . . . . . . . . . . 33 31 . . 288 . . . 699 . . Regen/Repaired (Parts) 7783 | . . . . . . 5 197 2014 511 . 63 206 547 350 132 . 269 142 232 108 48 161 814 53 289 264 . 1378 Core Remaining (%) 62 | 100 . . 13 . . 23 . . . . 51 . . . . . . 61 . . . 91 . 93 . . 70 . Volleys Fired 997 | . 22 3 24 40 85 137 39 118 64 36 22 17 11 9 2 6 14 8 11 14 . 41 24 56 61 85 41 7 Largest 2 | . 2 2 2 2 1 2 1 1 1 1 1 1 1 1 1 1 1 1 1 1 . 1 1 1 1 1 1 1 Hottest 167 | . 70 70 90 90 61 86 86 120 59 37 88 88 88 88 88 73 73 51 37 37 . 37 86 61 113 167 167 120 Shots Fired 1038 | . 44 6 29 47 85 144 39 118 64 36 22 17 11 8 2 6 14 8 11 14 . 40 24 56 61 85 40 7 Gun 317 | . 44 6 14 15 32 14 30 44 64 36 6 . . . . . . . . . . . 12 . . . . . Cannon 684 | . . . . 30 50 130 9 59 . . 16 17 11 8 2 6 14 8 11 14 . 40 12 56 61 84 39 7 Launcher 37 | . . . 15 2 3 . . 15 . . . . . . . . . . . . . . . . . 1 1 . Special . | . . . . . . . . . . . . . . . . . . . . . . . . . . . . . Kinetic 596 | . 22 3 . 42 50 137 9 68 . 16 22 . . . . 6 3 6 11 . . 40 12 . 26 84 39 . Thermal 389 | . 22 3 14 1 32 7 30 34 64 20 . 17 11 8 2 . . . . 14 . . 12 56 35 . . 7 Explosive 17 | . . . 15 2 . . . . . . . . . . . . . . . . . . . . . . . . Electromagnetic 23 | . . . . 2 3 . . 16 . . . . . . . . . . . . . . . . . 1 1 . Entropic 13 | . . . . . . . . . . . . . . . . . 11 2 . . . . . . . . . . Robot Hit Streak 30 | . 6 4 14 6 14 14 6 11 9 4 6 6 7 2 . 4 12 4 5 9 . 20 7 20 30 8 9 6 Robot Miss Streak 9 | . 2 1 1 2 2 4 2 5 2 4 4 3 1 3 . . . 2 1 1 . 3 2 2 4 2 9 2 Penetration Max 1 | . . . . . . . . 1 . . . . . . . . . . . . . 1 . . 1 1 . . Secondary Targets 3 | . 2 1 . . . . . . . . . . . . . . . . . . . . . . . . . . Max Gunslinging Chain 1 | . 1 1 . . . . . . . . . . . . . . . . . . . . . . . . . . Shots Hit Robots 637 | . 28 4 23 31 56 103 17 75 51 23 13 12 7 3 . 2 8 4 10 12 . 28 17 26 20 42 16 6 Core Hits 322 | . 12 3 13 20 26 48 7 46 17 7 6 5 . 4 . 3 2 11 4 2 . 16 9 14 12 24 11 . Critical Kills 15 | . . . . . . . . 5 . . . . . . . . . 2 1 1 . . . 1 . 4 1 . Critical Parts Destroyed 19 | . . . . . . . . 10 1 1 1 . . . . . 1 1 1 . . . . . . 2 1 . Critical Strikes 63 | . 2 1 . 1 6 . . 15 5 2 1 . . . . . 1 3 2 6 . 4 1 1 . 6 6 . Burn 6 | . 2 1 . . 3 . . . . . . . . . . . . . . . . . . . . . . . Meltdown 1 | . . . . . . . . . . . . . . . . . . . . . . . . 1 . . . . Destroy 46 | . . . . . . . . 15 5 2 1 . . . . . . 3 2 6 . . . . . 6 6 . Blast 9 | . . . . 1 3 . . . . . . . . . . . . . . . . 4 1 . . . . . Detonate 1 | . . . . . . . . . . . . . . . . . 1 . . . . . . . . . . . Melee Attacks 4 | . . . . . . . . . . 4 . . . . . . . . . . . . . . . . . . Impact . | . . . . . . . . . . . . . . . . . . . . . . . . . . . . . Slashing 4 | . . . . . . . . . . 4 . . . . . . . . . . . . . . . . . . Piercing . | . . . . . . . . . . . . . . . . . . . . . . . . . . . . . Sneak Attacks 4 | . . . . . . . . . . 4 . . . . . . . . . . . . . . . . . . Combat Hostiles . | . . . . . . . . . . . . . . . . . . . . . . . . . . . . . Follow-up Attacks . | . . . . . . . . . . . . . . . . . . . . . . . . . . . . . Damage Inflicted 28546 | . 357 63 959 829 1544 1903 510 3310 1172 735 705 765 420 412 . 234 792 285 183 466 . 958 857 2291 2557 4438 1470 331 Guns 4913 | . 357 48 109 165 560 173 438 1092 1172 430 57 . . . . . . . . . . . 312 . . . . . Cannons 19709 | . . . . 473 703 1730 72 1125 . . 648 765 420 206 . 112 631 62 183 466 . 958 545 2291 2557 4330 1177 255 Explosions 3249 | . . . 850 190 277 . . 1093 . . . . . 206 . 122 161 . . . . . . . . 108 242 . Melee 305 | . . . . . . . . . . 305 . . . . . . . . . . . . . . . . . . Ramming 370 | . . 15 . 1 4 . . . . . . . . . . . . 223 . . . . . . . . 51 76 Kinetic 13791 | . 182 23 . 589 703 1788 72 1533 . 165 705 . . . . 112 . 62 183 . . 958 545 . 664 4330 1177 . Thermal 10912 | . 175 25 109 41 658 115 438 907 1172 265 . 765 420 206 . 122 161 . . 466 . . 312 2291 1893 . 116 255 Explosive 1161 | . . . 850 149 . . . . . . . . . 162 . . . . . . . . . . . . . . Electromagnetic 1376 | . . . . 49 179 . . 870 . . . . . 44 . . . . . . . . . . . 108 126 . Impact . | . . . . . . . . . . . . . . . . . . . . . . . . . . . . . Slashing 305 | . . . . . . . . . . 305 . . . . . . . . . . . . . . . . . . Piercing . | . . . . . . . . . . . . . . . . . . . . . . . . . . . . . Entropic 631 | . . . . . . . . . . . . . . . . . 631 . . . . . . . . . . . Highest Corruption 30 | . 1 1 1 . . . 2 2 . . 14 2 29 30 30 30 30 4 . 11 11 11 . 2 . 4 14 5 Average Corruption 10 | . 1 1 1 . . . 1 1 . . 9 1 16 29 30 30 12 4 . 7 11 11 . 2 . 3 6 5 Corruption Purged 2 | . . . . . . . . 2 . . . . . . . . . . . . . . . . . . . . Corruption Blocked . | . . . . . . . . . . . . . . . . . . . . . . . . . . . . . Effects 200 | . 4 6 4 . . . 1 25 . . 2 . 13 30 29 33 1 15 . 6 3 12 . . . 4 11 1 Message Errors 54 | . 2 2 . . . . . 6 . . 1 . 2 10 8 9 . 5 . 2 1 3 . . . 1 2 . Matter Fused 55 | . . 3 2 . . . 1 7 . . 1 . 3 4 9 10 1 4 . . 1 3 . . . 2 4 . Heat Flow Errors 25 | . . 1 . . . . . 3 . . . . 1 2 6 3 . 2 . 1 1 3 . . . . 1 1 Energy Discharges 19 | . 1 . 1 . . . . 3 . . . . . 3 2 4 . 2 . . . . . . . . 3 . Parts Rejected 2 | . . . . . . . . 1 . . . . . . . . . . . 1 . . . . . . . . Parts Fused 2 | . . . . . . . . . . . . . . . . 1 . . . . . 1 . . . . . . Data Loss (minor) 23 | . . . . . . . . 5 . . . . 2 5 3 5 . 2 . . . . . . . 1 . . Data Loss (major) 6 | . 1 . . . . . . . . . . . . 1 1 1 . . . 1 . 1 . . . . . . Misfires 1 | . . . 1 . . . . . . . . . . . . . . . . . . . . . . . . . Alerts 4 | . . . . . . . . . . . . . 1 3 . . . . . . . . . . . . . . Misdirections 6 | . . . . . . . . . . . . . 4 1 . . . . . 1 . . . . . . . . Weapon Failures 3 | . . . . . . . . . . . . . . 1 . . . . . . . 1 . . . . 1 . Overload Shots . | . . . . . . . . . . . . . . . . . . . . . . . . . . . . . Overflow Damage 1431 | . . . 4 34 . 49 . 19 . 36 29 55 . . . . 16 . 6 . . 11 24 271 156 650 35 36 Projectiles 1285 | . . . . . . 49 . 2 . . 29 55 . . . . 16 . 6 . . 11 24 271 156 650 16 . Explosions 74 | . . . 4 34 . . . 17 . . . . . . . . . . . . . . . . . . 19 . Melee 72 | . . . . . . . . . . 36 . . . . . . . . . . . . . . . . . 36 Knockbacks 66 | . . . . 4 6 15 . 4 . . 9 . . . . 1 . 1 4 . . 6 2 . . 12 2 . Impact . | . . . . . . . . . . . . . . . . . . . . . . . . . . . . . Kinetic 59 | . . . . 4 6 13 . 3 . . 8 . . . . 1 . 1 3 . . 5 2 . . 11 2 . Secondary 7 | . . . . . . 2 . 1 . . 1 . . . . . . . 1 . . 1 . . . 1 . . Self-Inflicted Damage 402 | . . . 53 87 . . . 44 . . . . . . . 39 102 . . . . . . . . 39 . 38 Shots 12 | . . . 2 2 . . . 3 . . . . . . . 1 1 . . . . . . . . 3 . . Rammed 5 | . . 1 . 1 2 . . . . . . . . . . . . . . . . . . . . . . 1 Targets Rammed 42 | . . 1 . 1 2 . . . . . . . . . . . . 36 . . . . . . . . 1 1 Kicked 37 | . . . . . . . . . . . . . . . . . . 36 . . . . . . . . 1 . Crushed . | . . . . . . . . . . . . . . . . . . . . . . . . . . . . . Highest Temperature 613 | . 183 201 . 9 20 147 392 613 298 158 332 . 255 103 267 230 366 305 16 144 153 197 316 20 251 332 142 453 Average Temperature 98 | . 73 61 . 7 5 43 121 165 106 60 121 . 145 44 104 87 138 96 8 57 74 88 110 11 73 107 73 201 Received Heat Transfer 2982 | . 66 . 120 333 585 9 63 906 . 9 57 57 . . . 9 9 . . . . 36 111 42 63 30 423 54 Effects 39 | . . . . . . . 1 28 . . 2 . 1 . . . 4 . . . . . . . . 1 . 2 Shutdowns 5 | . . . . . . . 1 3 . . . . . . . . 1 . . . . . . . . . . . Energy Bleed 6 | . . . . . . . . 3 . . . . 1 . . . 1 . . . . . . . . 1 . . Interference 6 | . . . . . . . . 5 . . 1 . . . . . . . . . . . . . . . . . Matter Decay 2 | . . . . . . . . . . . 1 . . . . . . . . . . . . . . . . 1 Short Circuit 4 | . . . . . . . . 1 . . . . . . . . 2 . . . . . . . . . . 1 Damage (minor) 1 | . . . . . . . . 1 . . . . . . . . . . . . . . . . . . . . Damage (major) 15 | . . . . . . . . 15 . . . . . . . . . . . . . . . . . . . . Siege Activations . | . . . . . . . . . . . . . . . . . . . . . . . . . . . . . Martial Activations . | . . . . . . . . . . . . . . . . . . . . . . . . . . . . . Shielding Activations . | . . . . . . . . . . . . . . . . . . . . . . . . . . . . . Robots Disrupted 1 | . . . . . . . . . . . . . . . . . . . . . . . . . . 1 . . Combat Hostiles 1 | . . . . . . . . . . . . . . . . . . . . . . . . . . 1 . . Robots Corrupted 1 | . . . . . . . . 1 . . . . . . . . . . . . . . . . . . . . Combat Hostiles 1 | . . . . . . . . 1 . . . . . . . . . . . . . . . . . . . . Parts Fried 4 | . . . . . 1 . . 3 . . . . . . . . . . . . . . . . . . . . Impact Corruptions 2 | . . . . . . . . . . . . . . . . . . . . . . . . . . 1 . 1 Robots Melted 3 | . . . . . . . 1 1 . . . . . . . . . . . . . . . 1 . . . . Combat Hostiles 3 | . . . . . . . 1 1 . . . . . . . . . . . . . . . 1 . . . . Parts Melted 18 | . 1 1 . . 6 . . 1 1 . . 3 . . . . . . . . . . . 4 1 . . . Heat Transferred 9024 | . 666 148 274 50 1358 185 362 1081 1258 . . 444 259 111 . 100 100 . . 481 . . 225 962 638 . 100 222 Parts Sabotaged . | . . . . . . . . . . . . . . . . . . . . . . . . . . . . . Parts Stolen . | . . . . . . . . . . . . . . . . . . . . . . . . . . . . . Parts Stripped . | . . . . . . . . . . . . . . . . . . . . . . . . . . . . . Power Chain Reactions 7 | . . . . 1 2 . . 2 . . . . . . . 1 . . . . . . . . . . 1 . Alert | -11 -10 -10 -10 -8 -8 -8 -6 -6 -6 -6 -6 -5 -5 -5 -5 -5 -5 -4 -4 -4 -4 -4 -3 -3 -2 -2 -2 -1 ------- Run | Yrd Mat Min Sub Mat Sto Rec Fac Ext Cet Arc Hub Fac Was Fac Upp Upp War Pro Fac Was Fac DSF Res Qua Res Tes Frg Acc Maximum Alert Level 3 | . . . . . 2 1 2 1 . . 2 1 . . . . . . 3 1 . 1 1 1 2 3 2 . Low Security (%) 65 | 100 100 100 . 100 65 72 . 56 100 100 80 92 100 100 . . . . . . 100 40 99 99 18 . . 100 Level 1 24 | . . . . . 13 27 20 43 . . 16 7 . . . . . . . 100 . 59 . . 43 24 84 . Level 2 8 | . . . . . 20 . 80 . . . 2 . . . . . . . . . . . . . 38 38 15 . Level 3 1 | . . . . . . . . . . . . . . . . . . . 100 . . . . . . 37 . . Level 4 . | . . . . . . . . . . . . . . . . . . . . . . . . . . . . . Level 5 . | . . . . . . . . . . . . . . . . . . . . . . . . . . . . . High Security . | . . . . . . . . . . . . . . . . . . . . . . . . . . . . . Max Security . | . . . . . . . . . . . . . . . . . . . . . . . . . . . . . Peak Influence 996 | . 110 70 . 111 530 262 533 370 155 166 448 209 60 84 . . . . 996 338 175 284 208 211 477 769 458 139 Initial 921 | . . 12 . . 30 177 409 259 36 6 11 209 56 . . . . . 921 338 175 108 155 56 114 253 427 139 Average 171 | . 37 9 . 18 202 116 455 177 48 94 111 155 17 10 . . . . 939 294 166 192 156 93 316 596 306 84 Influence Increases 9610 | . 144 70 . 254 990 581 810 893 290 195 681 182 8 116 . 70 110 240 1005 2 . 178 223 505 929 862 249 23 Destroy 0b10 Robot/C 3700 | . 100 60 . 160 460 120 260 580 160 80 200 100 . . . 60 20 80 80 . . 140 80 240 180 440 100 . Destroy 0b10 Robot/NC 405 | . 15 . . 25 15 185 25 20 10 . 25 . . 15 . . . . . . . . 10 15 20 15 5 5 Destroy Leader 676 | . 24 10 . 32 154 . 50 66 . . 82 20 . 4 . 10 . 10 10 . . 20 22 34 66 50 12 . Allied During Kill 698 | . . . . . 173 37 71 28 97 80 212 . . . . . . . . . . . . . . . . . Successful Hack 193 | . 5 . . . 14 24 41 31 . . 5 22 . . . . . . . . . . 27 24 . . . . Select Force Hacks 230 | . . . . . . 180 . . . . 50 . . . . . . . . . . . . . . . . . Disable Machine 525 | . . . . 15 15 15 15 . . 30 90 . . 60 . . . . . . . . . 105 30 75 75 . Anti-Garrison Action 300 | . . . . . . . . . . . . . . . . . . . . . . . . . 300 . . . Destroy Structure 618 | . . . . 22 24 20 33 33 23 5 17 10 8 22 . . . . . 2 . 18 24 42 123 132 57 3 Advance Influence 1200 | . . . . . . . 300 . . . . . . . . . . . 900 . . . . . . . . . Partial Spotted 90 | . . . . . . . 15 15 . . . . . . . . . . . . . . 15 30 . . . 15 Lose Combat Pursuer 975 | . . . . . 135 . . 120 . . . 30 . 15 . . 90 150 15 . . . 45 15 210 150 . . Influence Decreases 9588 | . 112 102 . 181 607 775 543 1356 339 178 287 449 169 64 52 70 50 265 74 718 95 57 399 400 683 552 778 233 Entered New Map 2878 | . . 20 . . 43 279 153 270 30 11 23 219 105 . 20 . . 60 14 628 75 47 121 44 91 198 334 93 Time Decay 5566 | . 112 82 . 121 434 476 270 686 265 167 214 230 64 64 32 70 30 195 60 80 20 . 278 356 592 334 214 120 Lost Part 330 | . . . . 60 30 . . 60 . . 10 . . . . . 20 10 . 10 . 10 . . . 20 80 20 Lost Ally 664 | . . . . . 100 20 120 340 44 . 40 . . . . . . . . . . . . . . . . . Purge Threat 150 | . . . . . . . . . . . . . . . . . . . . . . . . . . . 150 . Squads Dispatched 49 | . 1 . . 8 5 . 3 2 . . 3 1 . 1 . . . . . . . 1 8 3 1 5 3 4 Investigation 9 | . . . . . 1 . 1 . . . 2 . . . . . . . . . . . 3 . . 1 . 1 Extermination 10 | . . . . . . . 1 . . . 1 1 . 1 . . . . . . . . . 3 . 2 1 . Reinforcement 17 | . 1 . . 5 1 . 1 2 . . . . . . . . . . . . . 1 2 . 1 1 2 . Assault 1 | . . . . . . . . . . . . . . . . . . . . . . . . . . 1 . . Garrison 12 | . . . . 3 3 . . . . . . . . . . . . . . . . . 3 . . . . 3 Intercept . | . . . . . . . . . . . . . . . . . . . . . . . . . . . . . Searches Triggered . | . . . . . . . . . . . . . . . . . . . . . . . . . . . . . Construction Impeded 2 | . . . . . 1 . . . . . . . . . . . . . . . . . . . . 1 . . Haulers Reinforced 3 | . . . . . . . 1 . . . . . . . . . . . . . . . 1 . 1 . . . Active Scanning Responses . | . . . . . . . . . . . . . . . . . . . . . . . . . . . . . Cargo Convoy Interrupts . | . . . . . . . . . . . . . . . . . . . . . . . . . . . . . Stealth | -11 -10 -10 -10 -8 -8 -8 -6 -6 -6 -6 -6 -5 -5 -5 -5 -5 -5 -4 -4 -4 -4 -4 -3 -3 -2 -2 -2 -1 --------- Run | Yrd Mat Min Sub Mat Sto Rec Fac Ext Cet Arc Hub Fac Was Fac Upp Upp War Pro Fac Was Fac DSF Res Qua Res Tes Frg Acc Distress Signals 31 | . 1 . . 4 5 . 1 1 2 . 1 . . . . . . 1 . . . . 5 . 6 2 . 2 Communications Jammed 34 | . . . . . . . . . . . . . . . . . . . . . . . 28 1 . . 1 4 Distress Signals 34 | . . . . . . . . . . . . . . . . . . . . . . . 28 1 . . 1 4 Times Spotted 381 | . 13 3 4 18 28 5 16 43 9 12 20 8 5 2 . 3 13 22 5 6 . 14 20 16 32 34 24 6 Peak Tracking Total 12 | . 6 3 2 6 6 2 7 7 5 2 10 4 5 2 . 2 10 8 5 5 . 9 5 3 9 5 12 4 Tactical Retreats 40 | . . . . . 7 . . 5 . . . 1 . 1 . . 4 4 1 1 . . 3 1 7 5 . . Traps | -11 -10 -10 -10 -8 -8 -8 -6 -6 -6 -6 -6 -5 -5 -5 -5 -5 -5 -4 -4 -4 -4 -4 -3 -3 -2 -2 -2 -1 ------- Run | Yrd Mat Min Sub Mat Sto Rec Fac Ext Cet Arc Hub Fac Was Fac Upp Upp War Pro Fac Was Fac DSF Res Qua Res Tes Frg Acc Traps Triggered 16 | . 2 . . . 1 . 1 2 . . . 1 . . . . . . 1 . . . 1 . . 2 4 1 Indirectly 1 | . . . . . . . . . . . . . . . . . . . . . . . . . . . 1 . Trap Hack Attempts . | . . . . . . . . . . . . . . . . . . . . . . . . . . . . . Triggered . | . . . . . . . . . . . . . . . . . . . . . . . . . . . . . Disarmed . | . . . . . . . . . . . . . . . . . . . . . . . . . . . . . Reprogrammed . | . . . . . . . . . . . . . . . . . . . . . . . . . . . . . Reused . | . . . . . . . . . . . . . . . . . . . . . . . . . . . . . Traps Extracted . | . . . . . . . . . . . . . . . . . . . . . . . . . . . . . Installed . | . . . . . . . . . . . . . . . . . . . . . . . . . . . . . Triggered . | . . . . . . . . . . . . . . . . . . . . . . . . . . . . . Machines | -11 -10 -10 -10 -8 -8 -8 -6 -6 -6 -6 -6 -5 -5 -5 -5 -5 -5 -4 -4 -4 -4 -4 -3 -3 -2 -2 -2 -1 ---------- Run | Yrd Mat Min Sub Mat Sto Rec Fac Ext Cet Arc Hub Fac Was Fac Upp Upp War Pro Fac Was Fac DSF Res Qua Res Tes Frg Acc Machines Disabled 40 | . . . . 1 1 1 1 . . 2 6 . . 4 . . 3 . . . . . . 7 4 5 5 . Max in Single Turn 3 | . . . . 1 1 1 1 . . 1 1 . . 3 . . 1 . . . . . . 1 1 1 1 . Garrison Access 4 | . . . . . . . . . . . . . . 1 . . . . . . . . . 1 2 . . . Network Hub 1 | . . . . . . . . . . . 1 . . . . . . . . . . . . . . . . . Machines Repaired . | . . . . . . . . . . . . . . . . . . . . . . . . . . . . . Machines Dismantled . | . . . . . . . . . . . . . . . . . . . . . . . . . . . . . Machines Sabotaged 1 | . . . . . . . . . . . 1 . . . . . . . . . . . . . . . . . Overloaded Fab Kills . | . . . . . . . . . . . . . . . . . . . . . . . . . . . . . Hacking | -11 -10 -10 -10 -8 -8 -8 -6 -6 -6 -6 -6 -5 -5 -5 -5 -5 -5 -4 -4 -4 -4 -4 -3 -3 -2 -2 -2 -1 --------- Run | Yrd Mat Min Sub Mat Sto Rec Fac Ext Cet Arc Hub Fac Was Fac Upp Upp War Pro Fac Was Fac DSF Res Qua Res Tes Frg Acc Machines Accessed 65 | . 2 . . 1 4 12 5 5 . . 5 3 . 1 1 1 1 . . . 1 . 1 8 4 5 5 . Terminals 42 | . 2 . . 1 3 5 3 5 . . 5 3 . . . . . . . . 1 . 1 6 . 3 4 . Fabricators 2 | . . . . . . . 1 . . . . . . . . . . . . . . . . . . 1 . . Repair Stations 1 | . . . . . . . 1 . . . . . . . . . . . . . . . . . . . . . Recycling Units 6 | . . . . . . 6 . . . . . . . . . . . . . . . . . . . . . . Scanalyzers 3 | . . . . . . . . . . . . . . . . . . . . . . . . 1 1 . 1 . Garrison Access 7 | . . . . . 1 . . . . . . . . 1 . . . . . . . . . 1 3 1 . . Total Hacks 118 | . 6 . . 2 7 18 9 13 . . 9 4 . 2 1 1 1 . . . 2 . 2 12 13 8 8 . Successful 50 | . 3 . . 1 3 14 5 6 . . 3 2 . 1 1 1 1 . . . 1 . 1 2 1 1 3 . Failed 68 | . 3 . . 1 4 4 4 7 . . 6 2 . 1 . . . . . . 1 . 1 10 12 7 5 . Catastrophic 24 | . . . . 1 2 1 2 1 . . 2 2 . 1 . . . . . . . . 1 3 2 2 4 . Database Lockouts . | . . . . . . . . . . . . . . . . . . . . . . . . . . . . . Manual 32 | . 5 . . . 1 14 4 2 1 . 2 2 . . . . . . . . . . . . . . 1 . Terminals 75 | . 6 . . 2 4 7 6 13 . . 9 4 . . . . . . . . 2 . 2 9 . 5 6 . Fabricators 3 | . . . . . . . 1 . . . . . . . . . . . . . . . . . . 2 . . Repair Stations 2 | . . . . . . . 2 . . . . . . . . . . . . . . . . . . . . . Recycling Units 9 | . . . . . . 9 . . . . . . . . . . . . . . . . . . . . . . Scanalyzers 7 | . . . . . . . . . . . . . . . . . . . . . . . . 2 3 . 2 . Garrison Access 17 | . . . . . 3 . . . . . . . . 2 . . . . . . . . . 1 10 1 . . Terminal Hacks 28 | . 1 . . 1 3 3 2 6 . . 2 2 . . 1 1 1 . . . 1 . 1 1 . 1 1 . Robot Analysis 2 | . 1 . . . . 1 . . . . . . . . . . . . . . . . . . . . . . Open Door 11 | . . . . . 3 . 1 4 . . . . . . 1 1 1 . . . . . . . . . . . Open DSF 1 | . . . . . . . . . . . . . . . . . . . . . 1 . . . . . . . Branch Access Points 4 | . . . . 1 . . 1 . . . . 1 . . . . . . . . . . 1 . . . . . Emergency Access Points 1 | . . . . . . . . . . . . . . . . . . . . . . . . . . 1 . . Unreport Threat 1 | . . . . . . . . . . . . . . . . . . . . . . . . . . . 1 . Locate Traps 3 | . . . . . . . . 1 . . 1 . . . . . . . . . . . . 1 . . . . Zone Layout 3 | . . . . . . . . 1 . . 1 1 . . . . . . . . . . . . . . . . Release Object 2 | . . . . . . 2 . . . . . . . . . . . . . . . . . . . . . . Fabricator Hacks . | . . . . . . . . . . . . . . . . . . . . . . . . . . . . . Repair Station Hacks 2 | . . . . . . . 2 . . . . . . . . . . . . . . . . . . . . . Scan Component 1 | . . . . . . . 1 . . . . . . . . . . . . . . . . . . . . . Repair 1 | . . . . . . . 1 . . . . . . . . . . . . . . . . . . . . . Recycling Unit Hacks 1 | . . . . . . 1 . . . . . . . . . . . . . . . . . . . . . . Retrieve Components 1 | . . . . . . 1 . . . . . . . . . . . . . . . . . . . . . . Scanalyzer 3 | . . . . . . . . . . . . . . . . . . . . . . . . . 1 . 2 . Insert Component 3 | . . . . . . . . . . . . . . . . . . . . . . . . . 1 . 2 . Garrison Access Hacks 2 | . . . . . . . . . . . . . . 1 . . . . . . . . . 1 . . . . Seal Access 2 | . . . . . . . . . . . . . . 1 . . . . . . . . . 1 . . . . Unauthorized Hacks 14 | . 2 . . . . 10 1 . . . 1 . . . . . . . . . . . . . . . . . Terminals 7 | . 2 . . . . 4 . . . . 1 . . . . . . . . . . . . . . . . . Skim 6 | . 2 . . . . 4 . . . . . . . . . . . . . . . . . . . . . . Sabotage 1 | . . . . . . . . . . . 1 . . . . . . . . . . . . . . . . . Fabricators 1 | . . . . . . . 1 . . . . . . . . . . . . . . . . . . . . . Liberate 1 | . . . . . . . 1 . . . . . . . . . . . . . . . . . . . . . Repair Stations . | . . . . . . . . . . . . . . . . . . . . . . . . . . . . . Recycling Units 6 | . . . . . . 6 . . . . . . . . . . . . . . . . . . . . . . Tunnel 6 | . . . . . . 6 . . . . . . . . . . . . . . . . . . . . . . Scanalyzers . | . . . . . . . . . . . . . . . . . . . . . . . . . . . . . Garrison Access . | . . . . . . . . . . . . . . . . . . . . . . . . . . . . . Data Cores Recovered 5 | . . . . . 1 . 1 . . . 1 . . . . . . . . . . . . 1 . 1 . . Used . | . . . . . . . . . . . . . . . . . . . . . . . . . . . . . Hacking Detections 41 | . 1 . . 1 3 4 2 3 1 . 4 . . 1 . . . . . . . . 1 6 4 5 5 . Full Trace Events 4 | . . . . 1 1 . 1 . . . 1 . . . . . . . . . . . . . . . . . Feedback Events . | . . . . . . . . . . . . . . . . . . . . . . . . . . . . . Feedback Blocked . | . . . . . . . . . . . . . . . . . . . . . . . . . . . . . Robot Schematics Acquired . | . . . . . . . . . . . . . . . . . . . . . . . . . . . . . Robots Built . | . . . . . . . . . . . . . . . . . . . . . . . . . . . . . Authchips . | . . . . . . . . . . . . . . . . . . . . . . . . . . . . . Time . | . . . . . . . . . . . . . . . . . . . . . . . . . . . . . Total Robot Build Rating . | . . . . . . . . . . . . . . . . . . . . . . . . . . . . . Part Schematics Acquired . | . . . . . . . . . . . . . . . . . . . . . . . . . . . . . Parts Built . | . . . . . . . . . . . . . . . . . . . . . . . . . . . . . Authchips . | . . . . . . . . . . . . . . . . . . . . . . . . . . . . . Time . | . . . . . . . . . . . . . . . . . . . . . . . . . . . . . Total Part Build Rating . | . . . . . . . . . . . . . . . . . . . . . . . . . . . . . Part Studies Acquired . | . . . . . . . . . . . . . . . . . . . . . . . . . . . . . Parts Repaired 1 | . . . . . . . 1 . . . . . . . . . . . . . . . . . . . . . Time 38 | . . . . . . . 38 . . . . . . . . . . . . . . . . . . . . . Parts Recycled . | . . . . . . . . . . . . . . . . . . . . . . . . . . . . . Recycled Matter . | . . . . . . . . . . . . . . . . . . . . . . . . . . . . . Retrieved Matter . | . . . . . . . . . . . . . . . . . . . . . . . . . . . . . Retrieved Components 9 | . . . . . . 9 . . . . . . . . . . . . . . . . . . . . . . Parts Scanalyzed . | . . . . . . . . . . . . . . . . . . . . . . . . . . . . . Part Schematics Acquired . | . . . . . . . . . . . . . . . . . . . . . . . . . . . . . Parts Damaged . | . . . . . . . . . . . . . . . . . . . . . . . . . . . . . Bothacking | -11 -10 -10 -10 -8 -8 -8 -6 -6 -6 -6 -6 -5 -5 -5 -5 -5 -5 -4 -4 -4 -4 -4 -3 -3 -2 -2 -2 -1 ------------ Run | Yrd Mat Min Sub Mat Sto Rec Fac Ext Cet Arc Hub Fac Was Fac Upp Upp War Pro Fac Was Fac DSF Res Qua Res Tes Frg Acc Used RIF Installer . | . . . . . . . . . . . . . . . . . . . . . . . . . . . . . Robots Hacked . | . . . . . . . . . . . . . . . . . . . . . . . . . . . . . Non-combat . | . . . . . . . . . . . . . . . . . . . . . . . . . . . . . Combat . | . . . . . . . . . . . . . . . . . . . . . . . . . . . . . Robot Hacks Applied . | . . . . . . . . . . . . . . . . . . . . . . . . . . . . . Relay Couplers Released 1 | . . . . . . . . . . . . . . . . . . . . . . . . . 1 . . . Machine Destruction 1 | . . . . . . . . . . . . . . . . . . . . . . . . . 1 . . . Fabnet Peak Effective % . | . . . . . . . . . . . . . . . . . . . . . . . . . . . . . Robots Rewired 24 | . . . . . . 7 . 17 . . . . . . . . . . . . . . . . . . . . Allies Hacked . | . . . . . . . . . . . . . . . . . . . . . . . . . . . . . Hacks Repelled . | . . . . . . . . . . . . . . . . . . . . . . . . . . . . . Allies | -11 -10 -10 -10 -8 -8 -8 -6 -6 -6 -6 -6 -5 -5 -5 -5 -5 -5 -4 -4 -4 -4 -4 -3 -3 -2 -2 -2 -1 -------- Run | Yrd Mat Min Sub Mat Sto Rec Fac Ext Cet Arc Hub Fac Was Fac Upp Upp War Pro Fac Was Fac DSF Res Qua Res Tes Frg Acc Total Allies 48 | . . . . . 10 7 4 22 5 . . . . . . . . . . . . . . . . . . . Largest Group 10 | . . . . . 10 10 8 5 6 4 3 . . . . . . . . . . . . . . . . . Highest-Rated Group 630 | . . . . . 173 196 201 243 630 370 274 . . . . . . . . . . . . . . . . . Highest-Rated Ally 159 | . . . . . 29 34 41 159 159 96 96 . . . . . . . . . . . . . . . . . Total Orders 15 | . . . . . . 12 . . 3 . . . . . . . . . . . . . . . . . . . STAY 4 | . . . . . . 2 . . 2 . . . . . . . . . . . . . . . . . . . ROAM 1 | . . . . . . 1 . . . . . . . . . . . . . . . . . . . . . . FOLLOW 10 | . . . . . . 9 . . 1 . . . . . . . . . . . . . . . . . . . Ally Attacks 364 | . . . . . 72 27 68 91 40 13 53 . . . . . . . . . . . . . . . . . Total Damage 9637 | . . . . . 839 537 1435 1565 2020 467 2774 . . . . . . . . . . . . . . . . . Kills 65 | . . . . . 12 6 13 9 10 3 12 . . . . . . . . . . . . . . . . . Allies Corrupted 2 | . . . . . . . . . . . 2 . . . . . . . . . . . . . . . . . Allies Melted 2 | . . . . . . . . 1 . . . . . . . . . . . . . . . . 1 . . . Intel | -11 -10 -10 -10 -8 -8 -8 -6 -6 -6 -6 -6 -5 -5 -5 -5 -5 -5 -4 -4 -4 -4 -4 -3 -3 -2 -2 -2 -1 ------- Run | Yrd Mat Min Sub Mat Sto Rec Fac Ext Cet Arc Hub Fac Was Fac Upp Upp War Pro Fac Was Fac DSF Res Qua Res Tes Frg Acc Active Infowar (turns) 10985 | . 323 556 458 136 555 1443 . . . . . 482 170 502 587 758 889 . . . . . 533 802 1867 234 440 250 Sensors 5051 | . . . . . . . . . . . . . . 502 587 758 889 . . . . . . . 1723 234 358 . IFF 1594 | . . . . . . . . . . . . 482 170 . . . . . . . . . . 799 143 . . . Structural 3471 | . 323 556 458 136 555 1443 . . . . . . . . . . . . . . . . . . . . . . Jamming 3463 | . . . . . . . . . . . . . . . . . . . . . . . 533 785 1453 2 440 250 Robot Analysis Total 2 | . 1 . . . . 1 . . . . . . . . . . . . . . . . . . . . . . Derelict Logs Recovered 2 | . . . . . . . . . . . . . . . 1 . . 1 . . . . . . . . . . Drone Launches . | . . . . . . . . . . . . . . . . . . . . . . . . . . . . . Drone Recoveries . | . . . . . . . . . . . . . . . . . . . . . . . . . . . . . Exploration | -11 -10 -10 -10 -8 -8 -8 -6 -6 -6 -6 -6 -5 -5 -5 -5 -5 -5 -4 -4 -4 -4 -4 -3 -3 -2 -2 -2 -1 ------------- Run | Yrd Mat Min Sub Mat Sto Rec Fac Ext Cet Arc Hub Fac Was Fac Upp Upp War Pro Fac Was Fac DSF Res Qua Res Tes Frg Acc Turns Passed 23858 | 66 360 556 458 524 1068 6085 585 2744 857 344 658 484 257 612 587 758 955 608 120 169 49 243 600 802 1867 752 440 250 Spaces Moved 13694 | 39 168 218 131 232 426 2085 561 1038 212 103 278 231 113 300 294 358 702 609 125 157 60 184 507 956 2174 692 436 305 Core 44 | 6 . . 20 18 . . . . . . . . . . . . . . . . . . . . . . . . Treads 2924 | 33 168 218 111 . 262 1020 . 311 . . . . 70 300 294 137 . . . . . . . . . . . . Legs 7019 | . . . . 9 . . 11 490 118 . 127 231 43 . . 132 573 587 125 156 . . 99 956 2174 692 436 60 Wheels 1611 | . . . . 205 164 933 309 . . . . . . . . . . . . . . . . . . . . . Hover 1071 | . . . . . . . 241 237 94 103 151 . . . . . . . . . . . . . . . . 245 Flight 1025 | . . . . . . 132 . . . . . . . . . 89 129 22 . 1 60 184 408 . . . . . Fastest Speed 50 | 50 160 240 240 115 145 70 58 51 225 242 145 180 180 180 180 138 74 74 68 68 68 68 56 56 56 73 73 58 Average Speed 121 | 143 168 240 310 171 150 176 64 128 240 242 210 180 180 180 180 164 130 74 71 68 68 68 80 56 72 73 73 60 Slowest Speed 800 | 160 240 240 700 800 235 356 70 269 242 242 242 180 180 180 180 180 138 74 74 68 68 68 144 56 73 73 73 73 Overloaded Moves . | . . . . . . . . . . . . . . . . . . . . . . . . . . . . . Propulsion Burnouts . | . . . . . . . . . . . . . . . . . . . . . . . . . . . . . Robots Hopped 1 | . . . . . . . . . . . . . . . . . . . . . . 1 . . . . . . Potential Cave-ins 16 | . . . . . 2 . . 8 . . . . . . . . . . . . . . . . 2 4 . . Cave-ins Triggered 2 | . . . . . . . . . . . . . . . . . . . . . . . . . . 1 1 . Teleports 2 | . . . . . . . . . . . . . . . . . . . . . . . . . . . 1 1 Exploration Rate (%) 45 | 4 33 38 14 23 72 96 18 64 58 73 36 7 81 7 54 42 87 66 5 77 3 94 14 90 61 70 18 13 Regions Visited 28 Branch Regions 15 Pre-discovered Areas 8 | . . 1 . . . 6 . . . . . . . . . . . 1 . . . . . . . . . . Known Exits Taken 10 | . . . . 1 . . 1 . . . . . . 1 1 1 . . . . 1 . 1 . 1 1 1 . Unknown Exits Taken 13 | 1 1 1 1 . 1 1 . 1 1 1 1 . . . . . 1 1 . . . . . 1 . . . . Scrap Searched 8 | . . 1 3 . . . . . . . . . . . 2 . . 2 . . . . . . . . . . Spaces Dug 107 | . . . . 1 6 1 5 9 . . . . 2 . 1 2 4 . . . . . . 17 43 9 7 . Terrain Destroyed 413 | . . . 65 23 25 2 8 29 . 4 4 5 4 10 2 9 36 7 . 1 . 9 11 21 61 55 21 1 Melee . | . . . . . . . . . . . . . . . . . . . . . . . . . . . . . Projectile 266 | . . . . 8 12 2 8 21 . 4 4 5 4 1 2 4 12 7 . 1 . 9 11 21 61 55 13 1 AOE 147 | . . . 65 15 13 . . 8 . . . . . 9 . 5 24 . . . . . . . . . 8 . Terrain Rammed . | . . . . . . . . . . . . . . . . . . . . . . . . . . . . . Walls Destroyed . | . . . . . . . . . . . . . . . . . . . . . . . . . . . . . Machines Disabled . | . . . . . . . . . . . . . . . . . . . . . . . . . . . . . Actions | -11 -10 -10 -10 -8 -8 -8 -6 -6 -6 -6 -6 -5 -5 -5 -5 -5 -5 -4 -4 -4 -4 -4 -3 -3 -2 -2 -2 -1 --------- Run | Yrd Mat Min Sub Mat Sto Rec Fac Ext Cet Arc Hub Fac Was Fac Upp Upp War Pro Fac Was Fac DSF Res Qua Res Tes Frg Acc Total 20105 | 46 201 244 160 307 770 4387 755 2352 501 164 332 285 155 362 350 522 724 759 146 207 67 267 681 1176 2428 874 521 362 Wait 4712 | . 9 21 . 6 185 2065 138 1037 200 6 18 29 30 37 55 158 1 99 6 34 4 13 134 111 170 72 37 37 Move 13667 | 38 167 217 130 232 425 2084 560 1037 211 102 277 231 112 299 293 357 701 608 125 156 59 181 506 955 2173 690 436 305 Hop 1 | . . . . . . . . . . . . . . . . . . . . . . 1 . . . . . . Pick Up 140 | 2 1 2 3 11 21 2 12 4 10 8 5 3 1 7 . . 4 1 1 . . 14 4 12 2 3 . 7 Fast Attach 82 | 6 1 . . 7 14 1 1 2 3 . 2 . . 1 . . 1 . 1 1 2 6 3 16 8 3 2 1 Attach 47 | . . . 1 6 3 . 1 4 1 1 . 3 . 4 . . . 4 1 . 1 . 3 2 1 5 4 2 Detach 20 | . . . 1 2 4 . . 1 1 . . . . . . . . 1 . 2 1 1 1 . 1 2 1 1 Swap 30 | . 1 . 1 2 6 2 . 1 2 . 1 . . 4 . . 1 . . . . . . 1 2 6 . . Drop 147 | . . . . 1 24 23 4 6 9 7 7 2 . 1 . 1 2 2 1 . . 10 6 23 10 7 . 1 Fire 997 | . 22 3 24 40 85 137 39 118 64 36 22 17 11 9 2 6 14 8 11 14 . 41 24 56 61 85 41 7 Melee 4 | . . . . . . . . . . 4 . . . . . . . . . . . . . . . . . . Ram 2 | . . . . . . . . . . . . . 1 . . . . . . . . . . . . . . 1 Kick 36 | . . . . . . . . . . . . . . . . . . 36 . . . . . . . . . . Crush 3 | . . 1 . . 2 . . . . . . . . . . . . . . . . . . . . . . . Escape Stasis 5 | . . . . . . . . 4 . . . . . . . . . . . . . . . . . 1 . . Rewire 212 | . . . . . 1 73 . 138 . . . . . . . . . . . . . . . . . . . . Trap . | . . . . . . . . . . . . . . . . . . . . . . . . . . . . . Miscellaneous . | . . . . . . . . . . . . . . . . . . . . . . . . . . . . . Route ------- -11/Scrapyard -10/Materials -10/Mines (discovered 2 exits: [*Mat] / [*Sub]) -10/Subcaves -8/Materials (discovered 2 exits: *Sto x2) -8/Storage (discovered 2 exits: [*Fac] / *Rec) -8/Recycling -6/Factory (discovered 4 exits: *Low x2 / *Ext x2) -6/Extension (discovered 2 exits: *Fac / *Cet) -6/Cetus (discovered 2 exits: *Fac / [*Arc]) -6/Archives (discovered 3 exits: *Fac / *Hub x2) -6/Hub_04(d) -5/Factory (discovered 2 exits: Upp x2) -5/Waste -5/Factory -5/Upper Caves -5/Upper Caves -5/Warlord -4/Proximity Caves -4/Factory -4/Waste -4/Factory -4/DSF -3/Research (discovered 3 exits: *Res / *Qua x2) -3/Quarantine -2/Research (discovered 4 exits: *Acc x3 / *Tes) -2/Testing (discovered 3 exits: *Acc / [*Sec] / *Frg) -2/Protoforge -1/Access History --------- Turn | Location | Event 6 | -11/Scrapyard | Discovered new exit (range 15) 67 | -11/Scrapyard | Entered Materials 315 | -10/Materials | Build established: Mutant 331 | -10/Materials | Discovered new exit (range 16) 427 | -10/Materials | Entered Mines 434 | -10/Mines | Received a Rocket Launcher from a helpful Derelict 472 | -10/Mines | Met a Derelict bent on vengeance 565 | -10/Mines | Discovered new exit (range 6) 807 | -10/Mines | Learned location of Storage (-8) 884 | -10/Mines | Discovered new exit (range 13) 983 | -10/Mines | Entered Subcaves 1191 | -10/Subcaves | Discovered new exit (range 14) 1282 | -10/Subcaves | Disturbed a concealed Subdweller 1292 | -10/Subcaves | Core integrity fell below 50% 1304 | -10/Subcaves | Core integrity fell below 20% 1328 | -10/Subcaves | Lost 3 parts (2n1w) 1441 | -10/Subcaves | Entered Materials 1441 | -8/Materials | Evolved 4 slots: Propulsion x3, Utility x1 1503 | -8/Materials | Garrison activated, responded to threat 1621 | -8/Materials | Lost 4 parts (1u3w) 1726 | -8/Materials | Identified exit to Storage 1922 | -8/Materials | Build established: Scavenger-Mutant 1965 | -8/Materials | Core integrity fell below 50% 1965 | -8/Materials | Entered Storage 1996 | -8/Storage | Lost 4 parts (1p1n2w) 2461 | -8/Storage | Discovered new exit (range 15) 2651 | -8/Storage | Build established: Mutant 2725 | -8/Storage | Assisted by bots powering up and referring to "LRC-V3" 2795 | -8/Storage | Garrison activated, responded to threat 2858 | -8/Storage | Lost 5 allies 3013 | -8/Storage | Used back door to open Recycling access 3013 | -8/Storage | Discovered new exit (range 4) 3031 | -8/Storage | Build established: Commander-Mutant 3033 | -8/Storage | Entered Recycling 3033 | -8/Recycling | Accompanied by 4 allies 3266 | -8/Recycling | P-60 Hacker assimilated allied Trooper 3d 4234 | -8/Recycling | Discovered new exit (range 8) 4470 | -8/Recycling | Entered Scraplab 4477 | -8/Recycling | Found Prototype Device 4477 | -8/Recycling | Identified Scrap Engine 4873 | -8/Recycling | Build established: Commander-Construct 9118 | -8/Recycling | Entered Factory 9118 | -6/Factory | Accompanied by 8 allies 9118 | -6/Factory | Evolved 4 slots: Power x1, Propulsion x2, Utility x1 9218 | -6/Factory | Identified exit to Lower Caves 9218 | -6/Factory | Identified exit to Extension 9319 | -6/Factory | Lost 4 allies 9568 | -6/Factory | Lost 3 allies 9609 | -6/Factory | Repaired Imp. Light Armor Plating 9703 | -6/Factory | Entered Extension 9703 | -6/Extension | Accompanied by 1 ally 9825 | -6/Extension | Build established: Construct 9961 | -6/Extension | Lost 3 allies 10083 | -6/Extension | Lost 3 allies 10103 | -6/Extension | Disrupted transfer network 10139 | -6/Extension | Rescued a captive Derelict 10145 | -6/Extension | Rescued a captive Derelict 10315 | -6/Extension | Lost 3 allies 10446 | -6/Extension | Spotted B-75 Beast 10527 | -6/Extension | Destroyed B-75 Beast 11203 | -6/Extension | Lost 5 parts (1p1n1u2w) 11398 | -6/Extension | Lost 3 allies 11733 | -6/Extension | Rescued a captive Derelict 12095 | -6/Extension | Rescued A7 12237 | -6/Extension | Discovered new exit (range 10) 12239 | -6/Extension | Discovered new exit (range 6) 12447 | -6/Extension | Entered Cetus 12447 | -6/Cetus | Accompanied by 4 allies (A7) 12452 | -6/Cetus | Acquired a Cetus Manufacturing Module code from A7 12506 | -6/Cetus | Spotted Cetus Guard 12506 | -6/Cetus | Spotted Cetus Guard 12509 | -6/Cetus | Spotted Cetus Guard 12516 | -6/Cetus | Allies destroyed Cetus Guard 12518 | -6/Cetus | Spotted Cetus Guard 12525 | -6/Cetus | Allies destroyed Cetus Guard 12535 | -6/Cetus | Allies destroyed Cetus Guard 12541 | -6/Cetus | Allies destroyed Cetus Guard 12554 | -6/Cetus | Lost 3 allies 12692 | -6/Cetus | Started Cetus Manufacturing Module 12717 | -6/Cetus | Manufactured an Enhanced Grunt 12742 | -6/Cetus | Manufactured an Enhanced Grunt 12767 | -6/Cetus | Manufactured an Enhanced Grunt 12792 | -6/Cetus | Manufactured an Enhanced Grunt 12817 | -6/Cetus | Manufactured an Enhanced Grunt 12835 | -6/Cetus | Discovered new exit (range 16) 12889 | -6/Cetus | Spotted Cetus Guard 12889 | -6/Cetus | Spotted Cetus Guard 12896 | -6/Cetus | Spotted Cetus Guard 12906 | -6/Cetus | Allies destroyed Cetus Guard 12910 | -6/Cetus | Allies destroyed Cetus Guard 12939 | -6/Cetus | Discovered new exit (range 15) 12951 | -6/Cetus | Met Revision 17 13094 | -6/Cetus | Build established: Commander-Construct 13197 | -6/Cetus | Security sweep announced 13250 | -6/Cetus | Murdered A7 13269 | -6/Cetus | Extracted ID and sensor layout for unrecognized location from A7's data core 13304 | -6/Cetus | Entered Archives 13304 | -6/Archives | Accompanied by 4 allies 13396 | -6/Archives | Discovered new exit (range 16) 13489 | -6/Archives | Discovered new exit (range 15) 13529 | -6/Archives | Discovered new exit (range 15) 13648 | -6/Archives | Entered Hub_04(d) 13648 | -6/Hub_04(d) | Accompanied by 3 allies 13770 | -6/Hub_04(d) | Build established: Construct 14184 | -6/Hub_04(d) | Discovered new exit (range 5) 14248 | -6/Hub_04(d) | Network Hub disabled 14258 | -6/Hub_04(d) | Spotted Lightning 14259 | -6/Hub_04(d) | Spotted Lightning 14266 | -6/Hub_04(d) | Spotted Lightning 14287 | -6/Hub_04(d) | Allies destroyed Lightning 14287 | -6/Hub_04(d) | Spotted Lightning 14287 | -6/Hub_04(d) | Spotted Lightning 14287 | -6/Hub_04(d) | Spotted Lightning 14289 | -6/Hub_04(d) | System corruption reached 10% 14306 | -6/Hub_04(d) | Entered Factory 14306 | -5/Factory | Evolved 2 slots: Utility x2 14331 | -5/Factory | Lost 3 allies 14790 | -5/Factory | Identified exit to Upper Caves 14790 | -5/Factory | Sucked down chute 14790 | -5/Factory | Entered Waste 14801 | -5/Waste | Spotted C-40 Crusher 14805 | -5/Waste | EMP discharged 14805 | -5/Waste | System corruption reached 10% 14900 | -5/Waste | Spotted C-40 Crusher 14905 | -5/Waste | EMP discharged 14906 | -5/Waste | Spotted C-40 Crusher 14916 | -5/Waste | Spotted C-40 Crusher 14931 | -5/Waste | Crushed by Compactor (0 parts destroyed, 1 dropped) 14946 | -5/Waste | Crushed by Compactor (0 parts destroyed, 2 dropped) 14951 | -5/Waste | Spotted C-40 Crusher 14960 | -5/Waste | Crushed by Compactor (0 parts destroyed, 1 dropped) 15005 | -5/Waste | EMP discharged 15030 | -5/Waste | Discovered new exit (range 10) 15047 | -5/Waste | Entered Factory 15334 | -5/Factory | Discovered exit to Upper Caves (range 9) 15655 | -5/Factory | System corruption reached 30% 15659 | -5/Factory | Entered Upper Caves 15796 | -5/Upper Caves | Learned 8 Factory zone layouts 16192 | -5/Upper Caves | Discovered new exit (range 5) 16199 | -5/Upper Caves | Identified exit to Upper Caves 16246 | -5/Upper Caves | Entered another Upper Caves area 16685 | -5/Upper Caves | Discovered new exit (range 8) 16855 | -5/Upper Caves | Identified exit to Warlord 17004 | -5/Upper Caves | Entered Warlord 17051 | -5/Warlord | System corruption cleaned by Quarantine Array 17191 | -5/Warlord | Met Warlord 17216 | -5/Warlord | Warlord's base attacked by MAIN.C 17269 | -5/Warlord | Found Signal Generator 17566 | -5/Warlord | Warlord forces counterattacked 17779 | -5/Warlord | Found Prototype Processor 17779 | -5/Warlord | Identified Exp. Targeting Computer 17788 | -5/Warlord | Found Prototype Processor 17837 | -5/Warlord | Spotted Striker 17838 | -5/Warlord | Spotted Striker 17887 | -5/Warlord | Lost 4 allies 17891 | -5/Warlord | Warlord base infiltrated, sounded retreat 17901 | -5/Warlord | Destroyed Striker 17953 | -5/Warlord | Discovered new exit (range 10) 17959 | -5/Warlord | Entered Proximity Caves 17961 | -4/Proximity Caves | Spotter reported a threat 17962 | -4/Proximity Caves | Spotter reported a threat 17963 | -4/Proximity Caves | Identified Exp. Armor Integrity Analyzer 18050 | -4/Proximity Caves | Spotter reported a threat 18112 | -4/Proximity Caves | Spotter reported a threat 18462 | -4/Proximity Caves | Spotter reported a threat 18521 | -4/Proximity Caves | Spotted B-86 Titan 18522 | -4/Proximity Caves | Spotter reported a threat 18557 | -4/Proximity Caves | Discovered new exit (range 13) 18567 | -4/Proximity Caves | Entered Factory 18567 | -4/Factory | Evolved 2 slots: Utility x1, Weapon x1 18568 | -4/Factory | Identified exit to Research 18687 | -4/Factory | Sucked down chute 18687 | -4/Factory | Entered Waste 18699 | -4/Waste | Spotted C-40 Crusher 18702 | -4/Waste | EMP discharged 18705 | -4/Waste | Spotted C-40 Crusher 18705 | -4/Waste | Spotted C-40 Crusher 18762 | -4/Waste | Crushed by Compactor (1 part destroyed) 18770 | -4/Waste | Spotted C-40 Crusher 18774 | -4/Waste | Spotted C-40 Crusher 18788 | -4/Waste | Spotted C-40 Crusher 18802 | -4/Waste | EMP discharged 18802 | -4/Waste | System corruption reached 10% 18810 | -4/Waste | Discovered new exit (range 16) 18849 | -4/Waste | Destroyed C-40 Crusher 18856 | -4/Waste | Entered Factory 18895 | -4/Factory | Found Quantum Capacitor 18905 | -4/Factory | Identified exit to DSF 18905 | -4/Factory | Entered DSF 18945 | -4/DSF | Additional patrols routed to DSF 19053 | -4/DSF | Found Adv. Powered Armor 19055 | -4/DSF | Found Adv. Powered Armor 19057 | -4/DSF | Found Adv. Powered Armor 19058 | -4/DSF | Found Adv. Powered Armor 19060 | -4/DSF | Found Adv. Powered Armor 19062 | -4/DSF | Found Adv. Powered Armor 19074 | -4/DSF | Discovered exit to Research (range 16) 19148 | -4/DSF | Entered Research 19148 | -3/Research | Evolved 2 slots: Utility x2 19200 | -3/Research | Garrison activated, responded to threat 19239 | -3/Research | Discovered new exit (range 9) 19324 | -3/Research | Spotted B-86 Titan 19348 | -3/Research | Revision forces began assault on 0b10 19464 | -3/Research | Met up with Revision 17++ 19524 | -3/Research | Identified exit to Quarantine 19748 | -3/Research | Entered Quarantine 19807 | -3/Quarantine | Cryocooling Duct disabled 19822 | -3/Quarantine | Ambient heat levels rising (+20) 19822 | -3/Quarantine | Non-combat units ordered to evacuate 19978 | -3/Quarantine | Found Alien Artifact 19978 | -3/Quarantine | Identified Phase Redirector 20094 | -3/Quarantine | Found Alien Artifact 20332 | -3/Quarantine | Found Alien Artifact 20332 | -3/Quarantine | Identified Phase Armor 20396 | -3/Quarantine | Found Gamma Bomb Array 20443 | -3/Quarantine | Found Alien Artifact 20447 | -3/Quarantine | Found Alien Artifact 20449 | -3/Quarantine | Found Alien Artifact 20451 | -3/Quarantine | Found Alien Artifact 20452 | -3/Quarantine | Found Alien Artifact 20506 | -3/Quarantine | Discovered new exit (range 9) 20513 | -3/Quarantine | Found Alien Artifact 20513 | -3/Quarantine | Identified Subatomic Replicator 20550 | -3/Quarantine | Entered Research 20550 | -2/Research | Warlord forces began assault on 0b10 20550 | -2/Research | Evolved 2 slots: Utility x2 20564 | -2/Research | Identified Hpw. Transdimensional Reconstructor 20660 | -2/Research | Research machine network offline 20699 | -2/Research | Met up with Warlord 20707 | -2/Research | P-80 Master assimilated allied 53-TC1(S) 20707 | -2/Research | P-80 Master assimilated allied LA-N16(S) 20882 | -2/Research | Spotted Striker 20894 | -2/Research | Borebot progress halted 20899 | -2/Research | Spotted Striker 20953 | -2/Research | Borebot progress halted 20960 | -2/Research | Lost 5 allies 21085 | -2/Research | Found Prototype Launcher 21085 | -2/Research | Identified Enh. Gamma Bomb Array 21089 | -2/Research | Found Enh. Gamma Bomb Array 21296 | -2/Research | Borebot progress halted 21330 | -2/Research | Lost 3 allies 21634 | -2/Research | Spotted Striker 21681 | -2/Research | Discovered new exit (range 8) 21683 | -2/Research | Spotted Striker 21686 | -2/Research | Identified exit to Access 21855 | -2/Research | Discovered exit to Access (range 4) 21957 | -2/Research | Found Prototype Processor 21957 | -2/Research | Identified Exp. Melee Analysis Suite 21972 | -2/Research | Met PL-HR7 22002 | -2/Research | Found Prototype Processor 22002 | -2/Research | Identified Exp. Core Analyzer 22044 | -2/Research | Met DD-05H 22044 | -2/Research | Warlord invited to help at Command 22044 | -2/Research | Given Cave Seal Controls access code 22176 | -2/Research | Discovered exit to Access (range 15) 22410 | -2/Research | Discovered new exit (range 11) 22417 | -2/Research | Identified exit to Testing 22417 | -2/Research | Entered Testing 22475 | -2/Testing | Destroyed 4Q-52M(K) 22529 | -2/Testing | Found Prototype Energy Gun 22529 | -2/Testing | Identified Warp Gun 22589 | -2/Testing | Spotted Striker 22591 | -2/Testing | Spotted Striker 22816 | -2/Testing | Crushed by falling debris 22917 | -2/Testing | First assault squad dispatched 23076 | -2/Testing | Discovered exit to Access (range 6) 23113 | -2/Testing | Spotted Fortress 23163 | -2/Testing | Discovered new exit (range 6) 23163 | -2/Testing | Discovered new exit (range 7) 23168 | -2/Testing | Identified exit to Protoforge 23169 | -2/Testing | Entered Protoforge 23186 | -2/Protoforge | Superfortress began startup sequence 23268 | -2/Protoforge | Identified Transdimensional Reconstructor (x3) 23268 | -2/Protoforge | Identified Dimensional Node Initializer 23473 | -2/Protoforge | Spotted B-90 Cyclops 23497 | -2/Protoforge | Discovered exit to Access (range 12) 23498 | -2/Protoforge | Crushed by falling debris 23498 | -2/Protoforge | System corruption reached 10% 23558 | -2/Protoforge | Lost 4 parts (4u) 23560 | -2/Protoforge | Warped through subspace 23567 | -2/Protoforge | Spotted Hotshot 23567 | -2/Protoforge | Spotted Hotshot 23567 | -2/Protoforge | Spotted Hotshot 23568 | -2/Protoforge | Spotted Hotshot 23568 | -2/Protoforge | Spotted Hotshot 23609 | -2/Protoforge | Entered Access 23609 | -1/Access | Evolved 2 slots: Power x1, Weapon x1 23610 | -1/Access | Lost 3 parts (2u1w) 23657 | -1/Access | Garrison activated, responded to threat 23761 | -1/Access | Warped through subspace 23859 | -1/Access | Self-destructed Last Messages --------------- 23791_ Arm. Scrap Engine constructs Quantum-Particle Reactor. 23795_ W-44 Eye distress signal jammed. 23797_ Penetrated by Slug. 23797_ W-44 Eye distress signal jammed. 23807_ System corrupted: Heat flow error (+222). 23821_ Scrap Engine modifies Hovering Centrium-Biometal Exoskeleton: Move Heat +4. 23829_ Arm. Scrap Engine consumes Nova Cannon. 23831_ Arm. Scrap Engine consumes Lyr. Light Armor Plating. 23832_ Acquired Nova Cannon. 23840_ Acquired HERF Cannon. 23841_ Slug penetrates Wall. 23844_ Penetrated by Slug. 23847_ Slug penetrates Wall. 23847_ Penetrated by Slug. 23854_ Arm. Scrap Engine consumes Mic. Antimatter Reactor. Map ----- +----------------------------------------------------+ | ?????????# # | | ?????????# # | | ?????????# # ##########+######### | | ?????????# # #??????????????????? | | ?????????# # #??????????????????? | | ?????????# " #??????????????????? | | ?????????# ] # #??????????????????? | | ?????????# # #??????????????????? | | ?????????############## #??????????????????? | | ???????????????# #??????????????????? | | ???????????????# #??????????????????? | | ???????????????# #??????????????????? | | ???????????????# #??????????????????? | | ???????????????# #??????????????????? | | ???????????????# #??????????????????? | | ???????????????# #??????????????????? | | ???????????????###########+#######???????????????? | | ????????????????????# #???????????????? | | ????????????????????# #???????????????? | | ????????????????????# "" #???????????????? | | ????????????????????# "" #???????????????? | | ????????????????????# """""" *#???????????????? | | ????????????????????# """""" *#???????????????? | | ????????????????????# "" #???????????????? | | ????????????????????# "" #???????????????? | | ????????????????????# @ #???????????????? | | ????????????????????#t #???????????????? | | ????????????????????# #???????????????? | | ????????????????????# #???????????????? | | ????????????????????##############???????????????? | | ?????????????????????????????????????????????????? | | ?????????????????????????????????????????????????? | | ?????????????????????????????????????????????????? | | ?????????????????????????????????????????????????? | | | | | | | | | | | | | | | | | | | | | | | | | | | | | | | | | +----------------------------------------------------+ Best States ------------- Heat Dissipation 80 Coolant Potential 120 Energy Generation 61 Energy Capacity 861 Matter Stores 300 Matter Capacity 300 Sight Range 16 Robot Scan Range 18 Terrain Scan Density 10 Jamming Range 14 Base Temperature (-) 150 Armor Coverage 800 Weapon Cycling 20 Evasion (%) 63 Targeting Accuracy 12 Target Analysis 8 Core Analysis 8 Armor Integrity Analysis 50 Recoil Reduction 5 Energy Filtering 30 Item Schematics ----------------- None Robot Schematics ------------------ None Fabricated ------------ Nothing Repaired ---------- Imp. Light Armor Plating | 66% | -6/Factory Studied --------- None Alien Tech Used ----------------- Phase Redirector Phase Armor Subatomic Replicator High-powered Transdimensional Reconstructor Transdimensional Reconstructor Achievements -------------- None Challenges ------------ None Game ------ Seed SniperPersonalChip Manual? 0 Play Time 02:55:39 Cumulative 550.3 hours Start 2025.11.15 @ 18:43:03 End 2025.11.15 @ 23:17:22 Sessions 2 Manual Loads 0 Difficulty Rogue Special Mode None Game No. 888 Rogue 733 Adventurer 148 Explorer 7 Win Type - Total 26 Types 20/1/4/1/0/0/0/0/0/0 Lore% 79 Gallery% 81 Achievement% 66 Wizard Run 0 Options --------- Layout 1 ASCII 0 Keyboard 0 Movement Numpad Keybinds 0 Fullscreen 2 Font 24/Smallcaps Map View 50x40 Zoom Use 0% Tactical HUD 1 Map Filters NONE Filters NONE Steam 1 RUN: 41279a76-09f1-4a86-9f4e-2190350d6b8b